bitfinex/quotes_SOLUSD_20241008
["timestamp","ask_amount","ask_price","bid_price","bid_amount"]
[1728396687387,0.12549,144.21,144.18,6.9357]
[1728396687707,43.902374,144.23,144.17,17.3395]
[1728396687897,24.027864,144.24,144.21,6.9343]
[1728396688096,0.25098,144.24,144.21,6.9343]
[1728396688302,19.29015401,144.26,144.22,6.9335]
[1728396688604,19.29015401,144.26,144.21,17.3351]
[1728396688605,19.29015401,144.26,144.21,24.2693]
[1728396689417,6.9329,144.24,144.21,17.3351]
[1728396689628,20.0,144.24,144.21,24.2692]
[1728396689815,20.25098,144.25,144.21,24.2692]
[1728396690119,12.35825401,144.26,144.23,6.933]
[1728396690322,12.35825401,144.26,144.21,17.3351]
[1728396690499,19.29035401,144.26,144.21,24.269]
[1728396691324,19.29035401,144.26,144.21,17.3351]
[1728396691514,0.25098,144.25,144.21,17.3351]
[1728396691715,0.25098,144.25,144.21,24.269]
[1728396692721,0.25098,144.25,144.22,6.9338]
[1728396693624,0.12549,144.25,144.24,6.9328]
[1728396693923,0.12549,144.25,144.21,17.3351]
[1728396693924,12.35825401,144.26,144.23,17.3327]
[1728396694104,21.20537287,144.28,144.23,17.3327]
[1728396694320,12.68223154,144.32,144.24,6.9327]
[1728396694498,6.9311,144.28,144.24,6.9327]
[1728396694920,6.9311,144.28,144.23,24.266]
[1728396695232,0.25098,144.27,144.23,24.266]
[1728396695405,6.9319,144.26,144.23,17.3327]
[1728396695606,7.18278,144.27,144.23,17.3327]
[1728396695806,7.18278,144.27,144.23,24.2659]
[1728396696225,20.25098,144.27,144.23,24.2659]
[1728396696519,27.18238,144.27,144.23,24.2659]
[1728396697134,6.9328,144.25,144.2,24.2716]
[1728396697304,20.25098,144.27,144.2,17.3369]
[1728396697625,6.933,144.24,144.2,17.3369]
[1728396698122,23.902374,144.26,144.2,17.3369]
[1728396698301,20.0,144.24,144.23,6.9333]
[1728396698507,20.0,144.24,144.22,17.3341]
[1728396698508,20.0,144.29,144.19,6.5457]
[1728396698707,20.0,144.29,144.26,6.9317]
[1728396699133,20.0,144.29,144.24,17.3316]
[1728396699428,6.931,144.28,144.24,17.3316]
[1728396699724,26.9305,144.29,144.25,6.9323]
[1728396699914,0.12549,144.28,144.24,24.2643]
[1728396700114,7.05639,144.28,144.24,24.2643]
[1728396700318,6.9305,144.29,144.25,6.9323]
[1728396701428,0.12549,144.28,144.25,6.9323]
[1728396701835,6.9305,144.29,144.25,6.9323]
[1728396702126,20.0,144.29,144.26,6.9318]
[1728396702832,7.05649,144.28,144.24,24.2643]
[1728396703009,0.12549,144.28,144.24,24.2643]
[1728396703336,27.05609,144.29,144.25,6.9323]
[1728396703508,20.12549,144.29,144.25,6.9323]
[1728396704106,27.05599,144.29,144.25,6.9323]
[1728396704327,24.027864,144.28,144.19,6.5457]
[1728396704537,7.18228,144.28,144.24,6.9328]
[1728396704732,20.0,144.29,144.26,6.9318]
[1728396704945,26.9305,144.29,144.25,24.2628]
[1728396705314,20.0,144.29,144.26,6.9317]
[1728396705636,20.76072891,144.3,144.26,6.9319]
[1728396706210,19.55541325,144.3,144.26,6.9319]
[1728396706530,6.9305,144.29,144.25,24.2628]
[1728396707736,0.12549,144.28,144.19,6.5457]
[1728396707931,7.05679,144.28,144.24,6.9327]
[1728396708227,7.05679,144.28,144.19,6.5457]
[1728396708228,6.9327,144.25,144.21,6.9343]
[1728396708440,20.12549,144.27,144.22,6.9338]
[1728396708616,20.0,144.27,144.21,17.3354]
[1728396708811,0.12549,144.26,144.23,6.9333]
[1728396709012,0.12549,144.26,144.21,17.3354]
[1728396709232,7.05739,144.26,144.22,6.9337]
[1728396710539,0.12549,144.26,144.21,17.3354]
[1728396710717,0.12549,144.26,144.23,17.3331]
[1728396711242,7.05749,144.26,144.23,17.3331]
[1728396711928,0.12549,144.24,144.21,6.9342]
[1728396712127,7.05739,144.26,144.22,6.9335]
[1728396712740,26.9315,144.27,144.23,6.9332]
[1728396713443,26.9315,144.27,144.22,17.3342]
[1728396713619,12.35802329,144.28,144.2,34.6723]
[1728396713815,32.35802329,144.28,144.27,6.9314]
[1728396714022,12.35802329,144.28,144.19,6.5457]
[1728396714231,6.9322,144.26,144.19,6.5457]
[1728396714429,6.9316,144.27,144.23,6.9333]
[1728396714748,6.9319,144.26,144.22,24.268]
[1728396714934,12.35802329,144.28,144.22,17.3344]
[1728396715149,19.28892329,144.28,144.24,6.9328]
[1728396716347,19.28892329,144.28,144.19,6.5457]
[1728396716542,19.28892329,144.28,144.24,17.332]
[1728396717025,19.28892329,144.28,144.24,24.2645]
[1728396717339,19.28892329,144.28,144.25,6.9322]
[1728396717340,12.35802329,144.28,144.25,6.9322]
[1728396717723,12.35802329,144.28,144.26,6.9318]
[1728396719552,12.35802329,144.28,144.26,17.3295]
[1728396719729,12.35802329,144.28,144.26,24.2613]
[1728396720159,12.35802329,144.28,144.26,17.3295]
[1728396720330,12.35802329,144.28,144.23,17.3323]
[1728396720653,6.9327,144.25,144.21,6.9339]
[1728396720949,6.9327,144.25,144.2,17.3358]
[1728396720950,6.9329,144.24,144.2,24.2702]
[1728396721150,24.027864,144.27,144.2,17.3358]
[1728396721339,6.9324,144.25,144.21,6.9342]
[1728396721655,6.9324,144.25,144.2,17.3358]
[1728396721656,6.9324,144.25,144.22,6.9338]
[1728396721877,24.027864,144.27,144.22,6.9338]
[1728396721878,6.932,144.26,144.22,6.9338]
[1728396722353,7.05699,144.27,144.23,6.9333]
[1728396722656,7.05699,144.27,144.19,6.5457]
[1728396722657,12.35802329,144.28,144.26,6.9318]
[1728396723233,12.35802329,144.28,144.26,17.3296]
[1728396723436,12.35802329,144.28,144.2,34.6719]
[1728396723647,6.9324,144.25,144.21,6.9338]
[1728396723954,12.35802329,144.28,144.2,34.6719]
[1728396723955,6.932,144.26,144.22,6.9335]
[1728396724754,6.9316,144.27,144.24,17.3318]
[1728396724957,18.52874208,144.32,144.26,6.9318]
[1728396724958,6.9301,144.3,144.26,6.9318]
[1728396725157,1.20514208,144.32,144.25,6.9321]
[1728396725158,26.9305,144.29,144.25,6.9321]
[1728396725554,6.931,144.28,144.24,24.2642]
[1728396726335,20.0,144.29,144.24,17.3318]
[1728396726665,6.9301,144.3,144.2,34.6719]
[1728396726962,8.13478894,144.31,144.27,6.9311]
[1728396727547,6.93,144.3,144.27,6.9311]
[1728396727752,6.93,144.3,144.26,24.2612]
[1728396728559,8.13478894,144.31,144.27,6.9313]
[1728396729265,7.05579,144.3,144.26,24.2613]
[1728396729441,7.05569,144.3,144.26,24.2613]
[1728396729648,6.9302,144.3,144.27,6.9314]
[1728396729839,8.13468894,144.31,144.27,6.9314]
[1728396730155,1.20518894,144.31,144.26,17.3295]
[1728396730357,1.20518894,144.31,144.28,6.9309]
[1728396730657,1.20518894,144.31,144.23,34.6653]
[1728396730853,12.47611264,144.33,144.28,17.3273]
[1728396731152,19.40461264,144.33,144.28,17.3273]
[1728396731342,12.47611264,144.33,144.31,6.9294]
[1728396731657,17.3176,144.37,144.31,6.9294]
[1728396731853,6.9279,144.35,144.31,6.9294]
[1728396732049,1.20488165,144.36,144.3,17.3246]
[1728396732248,1.20488165,144.36,144.32,6.9289]
[1728396732249,6.9274,144.36,144.32,6.9289]
[1728396733955,1.2047641,144.38,144.32,17.3222]
[1728396734256,12.5708518,144.39,144.29,17.3253]
[1728396734434,19.76885796,144.39,144.29,17.3253]
[1728396734634,6.9285,144.33,144.29,24.2556]
[1728396734834,6.9281,144.34,144.3,6.9299]
[1728396735029,6.9287,144.33,144.29,24.2556]
[1728396735456,6.9283,144.34,144.3,6.9299]
[1728396736444,20.25098,144.36,144.29,17.3253]
[1728396736645,6.928,144.34,144.3,6.9298]
[1728396737150,6.9277,144.35,144.31,6.9294]
[1728396737755,0.12549,144.36,144.32,6.9288]
[1728396738055,26.927,144.37,144.33,6.9285]
[1728396740455,20.0,144.37,144.33,17.3211]
[1728396740641,20.0,144.38,144.35,6.9275]
[1728396740841,20.0,144.38,144.29,34.6503]
[1728396741055,20.0,144.38,144.35,24.2463]
[1728396741255,20.0,144.37,144.35,17.3188]
[1728396741442,20.0,144.37,144.35,24.2463]
[1728396741843,6.9258,144.39,144.35,24.2463]
[1728396742140,6.925,144.41,144.37,6.9265]
[1728396742342,6.9244,144.42,144.38,6.9261]
[1728396742543,6.9244,144.42,144.37,17.3164]
[1728396742544,6.9247,144.41,144.37,24.2426]
[1728396742765,1.20482099,144.44,144.37,17.3164]
[1728396742941,6.9243,144.42,144.38,6.926]
[1728396743266,12.70403889,144.46,144.39,18.6981913]
[1728396743461,6.9238,144.43,144.39,24.2387]
[1728396743671,13.90872779,144.46,144.35,6.4231]
[1728396743964,6.9244,144.42,144.37,6.9264]
[1728396744142,6.9244,144.42,144.38,6.926]
[1728396744543,6.9238,144.43,144.39,6.9256]
[1728396744968,0.12549,144.42,144.39,6.9256]
[1728396745347,20.0,144.43,144.4,6.9251]
[1728396745762,20.0,144.43,144.39,6.9255]
[1728396745948,20.0,144.43,144.37,20.17568389]
[1728396746155,13.90872779,144.46,144.4,17.312]
[1728396746450,6.9234,144.44,144.4,24.237]
[1728396747164,20.83142779,144.46,144.42,6.9239]
[1728396747466,22.75837882,144.44,144.34,17.3192]
[1728396747669,17.3112,144.42,144.34,17.3192]
[1728396747963,6.9277,144.35,144.31,30.517]
[1728396748149,6.9271,144.36,144.32,6.9289]
[1728396748353,6.9271,144.36,144.31,23.5879]
[1728396749047,6.9271,144.36,144.31,30.5173]
[1728396750351,6.9271,144.36,144.31,23.5879]
[1728396750549,6.9271,144.36,144.32,6.9289]
[1728396751891,0.12549,144.34,144.27,6.3278]
[1728396752071,6.929,144.33,144.27,13.2591]
[1728396752249,0.25098,144.32,144.27,6.3278]
[1728396752449,6.93,144.3,144.27,6.3278]
[1728396752666,6.93,144.3,144.26,22.6875]
[1728396753050,20.0,144.31,144.26,22.6875]
[1728396753355,20.0,144.31,144.27,6.9314]
[1728396753653,20.0,144.31,144.28,6.9309]
[1728396753971,20.25098,144.32,144.26,22.6875]
[1728396754273,27.18008,144.32,144.27,6.9312]
[1728396754772,27.18008,144.32,144.28,6.9308]
[1728396755157,20.0,144.34,144.3,6.9299]
[1728396755370,20.0,144.33,144.26,50.4148]
[1728396755668,6.9281,144.34,144.29,6.9303]
[1728396755859,20.0,144.33,144.29,6.9303]
[1728396756045,6.9287,144.33,144.29,6.9303]
[1728396758059,20.0,144.33,144.28,17.3268]
[1728396758257,12.53603368,144.37,144.3,17.3246]
[1728396758457,20.0,144.35,144.32,6.9289]
[1728396758659,6.9281,144.34,144.3,24.2545]
[1728396759157,6.9277,144.35,144.3,24.2545]
[1728396759460,6.9285,144.34,144.3,17.3246]
[1728396759653,6.9285,144.34,144.3,24.2545]
[1728396761361,20.0,144.34,144.31,6.9293]
[1728396763573,0.12549,144.33,144.27,17.3277]
[1728396763766,0.25098,144.35,144.33,6.9285]
[1728396763953,0.12549,144.35,144.33,6.9285]
[1728396764274,26.9272,144.36,144.32,6.9288]
[1728396764767,20.12549,144.36,144.32,6.9288]
[1728396764977,27.05259,144.36,144.32,8.31443606]
[1728396765873,20.0,144.36,144.34,6.9277]
[1728396766064,20.0,144.36,144.33,17.321]
[1728396766065,20.0,144.38,144.33,17.321]
[1728396766271,6.9271,144.36,144.33,17.321]
[1728396766967,20.0,144.38,144.33,17.321]
[1728396767168,20.0,144.36,144.33,24.2495]
[1728396767477,6.9266,144.37,144.33,24.2494]
[1728396767864,20.0,144.36,144.33,24.2494]
[1728396768576,6.9271,144.36,144.33,17.321]
[1728396768981,6.9281,144.34,144.31,6.0155]
[1728396769280,6.9282,144.34,144.3,6.9299]
[1728396770077,6.9282,144.34,144.29,17.3259]
[1728396770374,20.12549,144.36,144.32,6.9288]
[1728396770565,20.0,144.36,144.33,6.9281]
[1728396770975,20.12549,144.37,144.34,6.928]
[1728396771477,27.05219,144.37,144.33,24.2496]
[1728396771982,0.12549,144.36,144.33,24.2496]
[1728396773174,26.9267,144.37,144.33,24.2496]
[1728396773379,20.12549,144.38,144.35,6.9275]
[1728396773571,28.13044443,144.4,144.36,6.927]
[1728396773876,26.9252,144.4,144.35,17.3188]
[1728396774080,26.9252,144.4,144.36,6.9267]
[1728396774406,6.925,144.41,144.37,24.2425]
[1728396775180,6.9252,144.4,144.36,6.927]
[1728396775480,12.34018238,144.42,144.35,6.6547]
[1728396775664,6.9253,144.4,144.36,6.927]
[1728396775864,50.701684,144.41,144.37,6.9266]
[1728396776066,20.0,144.41,144.35,6.6547]
[1728396776370,20.0,144.41,144.39,6.9253]
[1728396776675,6.9226,144.46,144.42,6.9238]
[1728396776975,1.20409964,144.48,144.4,17.3123]
[1728396777182,6.9228,144.45,144.41,6.9245]
[1728396778764,20.0,144.45,144.42,6.9241]
[1728396781282,28.12559964,144.48,144.44,6.923]
[1728396781878,0.12549,144.47,144.44,6.923]
[1728396782080,20.0,144.48,144.45,6.9227]
[1728396782279,19.31551656,144.49,144.46,1.38437965]
[1728396782280,12.39461656,144.49,144.46,1.38437965]
[1728396782465,12.39461656,144.49,144.47,6.9218]
[1728396782871,8.12312714,144.53,144.48,6.9213]
[1728396783174,6.9194,144.52,144.48,6.9213]
[1728396783370,1.20407887,144.55,144.46,17.3051]
[1728396783574,6.9199,144.51,144.47,6.9218]
[1728396783776,6.9195,144.52,144.47,6.9218]
[1728396784284,20.0,144.52,144.48,6.9212]
[1728396784881,20.0,144.52,144.49,6.9208]
[1728396785074,20.0,144.52,144.46,17.3051]
[1728396785273,21.20407887,144.55,144.46,17.3051]
[1728396785684,24.027864,144.54,144.46,17.3051]
[1728396785886,26.9202,144.51,144.47,6.9217]
[1728396786189,20.0,144.49,144.43,17.3086]
[1728396786370,0.25098,144.48,144.43,17.3086]
[1728396787483,0.25098,144.48,144.44,6.923]
[1728396787790,0.25098,144.48,144.44,8.30747946]
[1728396787997,0.12549,144.48,144.44,8.30746986]
[1728396788295,20.0,144.49,144.45,6.9227]
[1728396789193,0.25098,144.48,144.43,24.2322]
[1728396789375,0.25098,144.48,144.42,12.9647]
[1728396789701,0.12549,144.46,144.42,6.0407]
[1728396790189,0.25098,144.46,144.42,6.0407]
[1728396790494,0.25098,144.46,144.41,22.6742]
[1728396790878,0.12549,144.46,144.42,6.9241]
[1728396791080,0.12549,144.46,144.41,15.7496]
[1728396791391,0.12549,144.46,144.43,6.9236]
[1728396791587,20.0,144.47,144.44,6.9229]
[1728396791897,12.3455648,144.51,144.45,6.9227]
[1728396792275,12.3455648,144.51,144.46,6.9223]
[1728396792475,16.64757887,144.55,144.46,17.3052]
[1728396792678,12.92419642,144.54,144.46,24.2274]
[1728396793290,6.9205,144.5,144.46,24.2274]
[1728396794298,20.0,144.5,144.46,17.3052]
[1728396794484,20.0,144.51,144.48,6.921]
[1728396794884,6.9209,144.49,144.46,23.94]
[1728396795990,7.04619,144.5,144.46,30.8623]
[1728396796194,37.54988,144.52,144.43,23.7781]
[1728396796494,6.9214,144.48,144.44,6.9231]
[1728396796696,6.921,144.49,144.45,6.9227]
[1728396797070,20.25098,144.5,144.46,6.922]
[1728396797290,27.04589,144.5,144.46,6.922]
[1728396797903,7.04569,144.51,144.47,24.2257]
[1728396798190,26.9208,144.5,144.46,6.9221]
[1728396798400,23.776884,144.51,144.44,17.3073]
[1728396798775,20.0,144.5,144.44,17.3073]
[1728396799070,6.9211,144.49,144.45,6.9226]
[1728396800898,20.0,144.5,144.47,6.9217]
[1728396801098,6.92,144.51,144.47,6.9214]
[1728396801299,12.31529278,144.52,144.48,18.68727893]
[1728396801497,12.31529278,144.52,144.48,17.3032]
[1728396801697,12.31529278,144.52,144.49,6.9208]
[1728396802402,20.0,144.51,144.49,6.9208]
[1728396802784,20.0,144.51,144.49,8.30481739]
[1728396802987,12.31529278,144.52,144.51,6.9199]
[1728396803299,12.31529278,144.52,144.49,6.9207]
[1728396803491,12.31529278,144.52,144.5,8.30406459]
[1728396803692,12.31529278,144.52,144.5,6.9201]
[1728396804005,12.31529278,144.52,144.39,6.3735]
[1728396804006,6.9239,144.43,144.39,6.3735]
[1728396804314,6.9233,144.44,144.39,13.2988]
[1728396804488,20.0,144.43,144.39,13.2988]
[1728396804686,6.9238,144.43,144.39,6.3735]
[1728396804982,6.9243,144.42,144.38,16.5044]
[1728396805493,6.9247,144.41,144.37,17.3162]
[1728396805805,6.9243,144.42,144.37,24.2427]
[1728396806600,6.9238,144.43,144.37,24.2427]
[1728396806812,20.0,144.42,144.37,24.2427]
[1728396807700,20.0,144.42,144.37,17.3162]
[1728396807899,20.0,144.42,144.38,6.9261]
[1728396810405,0.25098,144.45,144.38,6.9261]
[1728396810597,6.9242,144.42,144.38,6.9261]
[1728396810799,24.027864,144.45,144.38,6.9261]
[1728396811099,20.0,144.44,144.39,1.38491463]
[1728396811398,20.0,144.44,144.4,6.9251]
[1728396812411,6.9233,144.44,144.4,6.9251]
[1728396812809,20.0,144.43,144.4,6.9251]
[1728396813693,20.0,144.43,144.39,6.9255]
[1728396813889,0.25098,144.45,144.39,6.9255]
[1728396814095,6.9238,144.43,144.39,6.9255]
[1728396816929,0.25098,144.45,144.37,24.2427]
[1728396817099,6.9242,144.42,144.37,17.3162]
[1728396817299,6.9238,144.43,144.38,6.9258]
[1728396817512,6.9244,144.42,144.38,6.926]
[1728396818022,6.9239,144.43,144.39,6.9256]
[1728396818817,6.9239,144.43,144.38,6.926]
[1728396819115,6.9243,144.42,144.38,6.926]
[1728396819718,27.19220272,144.46,144.36,32.28343492]
[1728396819919,7.19220272,144.46,144.43,6.9233]
[1728396820096,6.9209,144.49,144.45,6.9227]
[1728396820412,6.9223,144.46,144.43,17.309]
[1728396820598,6.9219,144.47,144.43,17.309]
[1728396820804,33.5877,144.51,144.43,17.309]
[1728396821018,33.5877,144.51,144.44,8.30728624]
[1728396821205,6.921,144.49,144.45,6.9227]
[1728396821407,6.9204,144.5,144.46,6.9222]
[1728396821604,6.9204,144.5,144.46,8.30645601]
[1728396822522,12.31529278,144.52,144.46,8.30645601]
[1728396822523,6.9199,144.51,144.47,6.9217]
[1728396822896,6.9199,144.51,144.46,8.30635601]
[1728396823825,26.9207,144.5,144.46,6.9221]
[1728396826013,20.0,144.5,144.45,17.3066]
[1728396826218,6.9214,144.48,144.44,6.9232]
[1728396826917,6.9214,144.48,144.42,17.3096]
[1728396826918,0.12549,144.47,144.42,17.3096]
[1728396827105,6.9228,144.45,144.42,17.3096]
[1728396827301,6.9233,144.44,144.4,13.4122]
[1728396827508,0.12549,144.47,144.4,6.4872]
[1728396827712,6.9238,144.43,144.4,6.4872]
[1728396827919,0.25098,144.47,144.4,6.4872]
[1728396828118,6.9234,144.44,144.4,13.4123]
[1728396828730,24.027864,144.47,144.4,13.4123]
[1728396829024,6.9237,144.43,144.4,6.4872]
[1728396830127,0.25098,144.47,144.36,66.91823492]
[1728396830128,17.3063,144.46,144.36,23.4016]
[1728396830315,0.12549,144.44,144.37,6.9262]
[1728396830632,0.12549,144.44,144.36,23.4016]
[1728396830809,6.9256,144.39,144.36,6.0847]
[1728396831011,6.9262,144.38,144.35,15.1845]
[1728396831211,6.9262,144.38,144.33,24.2489]
[1728396831427,0.12549,144.39,144.33,24.2489]
[1728396831722,6.9267,144.37,144.33,24.2489]
[1728396832026,6.9262,144.38,144.33,24.2489]
[1728396833726,44.027864,144.4,144.32,13.1878]
[1728396833919,6.9276,144.35,144.32,6.2589]
[1728396835928,6.9276,144.35,144.3,17.3242]
[1728396836127,17.3184,144.36,144.27,38.6854]
[1728396836428,0.12549,144.33,144.27,45.6167]
[1728396836618,6.9295,144.31,144.27,45.6167]
[1728396836819,0.12549,144.33,144.27,45.6167]
[1728396836820,6.9291,144.32,144.27,38.6854]
[1728396837020,20.0,144.32,144.27,38.6854]
[1728396837219,20.0,144.32,144.28,6.9309]
[1728396837404,20.0,144.32,144.29,6.9304]
[1728396837604,0.25098,144.34,144.27,30.4797]
[1728396837920,7.05459,144.32,144.27,30.4797]
[1728396838127,6.9295,144.31,144.27,23.5484]
[1728396838339,6.9295,144.31,144.27,30.4798]
[1728396839343,6.9295,144.31,144.27,17.3278]
[1728396839545,0.12549,144.31,144.27,17.3278]
[1728396839748,6.93,144.3,144.27,17.3278]
[1728396840049,0.12549,144.31,144.26,1.38615645]
[1728396840451,20.12549,144.31,144.27,6.9312]
[1728396840643,20.0,144.31,144.28,8.31704009]
[1728396840947,20.0,144.31,144.28,6.9309]
[1728396841343,20.12549,144.32,144.28,6.9309]
[1728396841644,20.0,144.32,144.29,8.31604016]
[1728396841821,20.0,144.32,144.28,17.327]
[1728396842244,20.0,144.33,144.28,17.327]
[1728396842645,20.0,144.33,144.29,6.9303]
[1728396842833,20.0,144.36,144.3,18.71007591]
[1728396843145,6.9262,144.38,144.33,6.9284]
[1728396843344,6.9261,144.39,144.34,6.9278]
[1728396843527,6.9264,144.38,144.33,6.9285]
[1728396843723,6.9266,144.37,144.33,6.9285]
[1728396844349,20.0,144.36,144.33,6.9285]
[1728396844651,20.0,144.37,144.32,17.3219]
[1728396844833,39.96699029,144.37,144.32,24.2508]
[1728396845450,0.12549,144.35,144.3,6.4201]
[1728396845747,7.05319,144.35,144.31,6.9294]
[1728396846148,12.85495555,144.35,144.3,6.4201]
[1728396846351,12.85495555,144.35,144.32,6.9289]
[1728396846956,19.78255555,144.35,144.31,17.3234]
[1728396847251,19.78255555,144.35,144.31,24.2527]
[1728396847655,12.85495555,144.35,144.31,17.3234]
[1728396847848,12.85495555,144.35,144.32,6.9289]
[1728396848654,20.12549,144.34,144.3,6.4201]
[1728396848850,20.12549,144.34,144.28,24.257]
[1728396848851,6.9291,144.32,144.28,24.257]
[1728396849043,0.12549,144.33,144.28,17.3265]
[1728396849357,0.12549,144.33,144.27,6.9313]
[1728396849358,6.9296,144.31,144.27,6.9313]
[1728396849956,0.12549,144.32,144.26,6.3491]
[1728396850253,6.93,144.3,144.26,13.2808]
[1728396850459,6.93,144.3,144.25,24.2622]
[1728396850855,0.12549,144.32,144.26,6.9319]
[1728396851157,20.0,144.32,144.25,17.33]
[1728396851332,0.25098,144.29,144.23,6.4994]
[1728396851958,0.25098,144.29,144.22,17.3337]
[1728396851959,20.0,144.26,144.22,17.3337]
[1728396852135,6.9325,144.25,144.2,23.1535]
[1728396852334,7.05829,144.24,144.2,23.1535]
[1728396852545,7.05829,144.24,144.2,6.9343]
[1728396852832,7.05829,144.24,144.19,30.6583]
[1728396853158,7.05829,144.24,144.19,24.2725]
[1728396853360,26.9334,144.23,144.19,17.3374]
[1728396853738,20.12549,144.24,144.2,6.9347]
[1728396854346,0.12549,144.23,144.19,24.2726]
[1728396854556,7.05889,144.23,144.17,6.9357]
[1728396854866,7.05889,144.23,144.16,21.5892]
[1728396854867,0.12549,144.2,144.16,24.2779]
[1728396855045,0.12549,144.2,144.13,32.30634145]
[1728396855046,6.9353,144.19,144.15,6.9371]
[1728396855240,0.12549,144.2,144.16,6.9367]
[1728396855557,20.12549,144.2,144.16,6.9367]
[1728396855857,0.12549,144.2,144.15,17.3425]
[1728396856061,0.25098,144.2,144.16,6.9366]
[1728396856365,7.18578,144.2,144.15,24.2795]
[1728396856553,0.25098,144.18,144.15,17.3425]
[1728396856989,0.25098,144.18,144.12,22.9204]
[1728396856990,20.25098,144.18,144.12,24.2847]
[1728396857269,0.12549,144.16,144.12,24.2847]
[1728396857566,12.34794249,144.16,144.12,24.2847]
[1728396858152,12.22245249,144.16,144.12,17.3462]
[1728396858462,12.22245249,144.16,144.15,6.9372]
[1728396859341,20.25098,144.2,144.14,17.3436]
[1728396859541,20.25098,144.2,144.16,6.9366]
[1728396859860,0.25098,144.21,144.17,6.9361]
[1728396860160,6.9349,144.2,144.13,17.3453]
[1728396860337,0.25098,144.19,144.13,17.3453]
[1728396860544,0.25098,144.19,144.1,18.2081165]
[1728396860736,0.12549,144.15,144.11,6.9387]
[1728396861240,0.25098,144.16,144.1,18.2081165]
[1728396861534,0.25098,144.16,144.12,6.9386]
[1728396862856,20.25098,144.17,144.13,6.9381]
[1728396863047,20.25098,144.17,144.12,17.3458]
[1728396863247,20.0,144.19,144.14,17.3436]
[1728396863454,8.26735972,144.18,144.13,39.24444145]
[1728396863948,1.33125972,144.18,144.14,6.9376]
[1728396864161,1.33125972,144.18,144.13,39.24444145]
[1728396864361,8.26715972,144.18,144.13,39.24444145]
[1728396864749,0.12549,144.17,144.13,39.24444145]
[1728396865466,0.12549,144.17,144.13,32.30634145]
[1728396865642,12.46784348,144.18,144.13,49.65114145]
[1728396866066,20.0,144.19,144.13,49.65114145]
[1728396866241,8.38370617,144.21,144.2,6.9348]
[1728396866566,12.86619449,144.22,144.18,24.2736]
[1728396866754,12.86619449,144.22,144.16,32.30634145]
[1728396866960,6.9345,144.21,144.16,32.30634145]
[1728396867350,6.9351,144.2,144.15,17.3422]
[1728396867551,6.9356,144.19,144.15,17.3422]
[1728396868545,0.25098,144.19,144.15,24.2792]
[1728396868757,0.25098,144.19,144.16,6.9365]
[1728396869084,0.25098,144.2,144.17,6.936]
[1728396869372,0.12549,144.2,144.17,6.936]
[1728396870167,0.25098,144.2,144.16,6.9366]
[1728396870471,0.25098,144.16,144.12,24.2846]
[1728396870843,0.12549,144.18,144.14,6.9374]
[1728396871049,12.45095263,144.18,144.15,6.9371]
[1728396871770,12.45095263,144.18,144.14,24.2814]
[1728396872168,12.45095263,144.18,144.14,17.3439]
[1728396872378,12.45095263,144.18,144.16,6.9365]
[1728396872561,6.9348,144.2,144.15,6.937]
[1728396872763,6.9354,144.19,144.15,6.937]
[1728396873072,6.9354,144.19,144.14,24.2814]
[1728396873258,20.12549,144.16,144.1,0.8597165]
[1728396873463,7.06299,144.15,144.1,7.7992165]
[1728396873853,20.0,144.14,144.1,7.7992165]
[1728396874157,0.12549,144.15,144.1,7.7992165]